bitfinex-derivatives/quotes_ETHF0:USTF0_20251118
["timestamp","ask_amount","ask_price","bid_price","bid_amount"]
[1763441697643,0.1469,2984.0,2983.0,2.673e-05]
[1763441699437,0.1394,2983.2,2983.0,2.673e-05]
[1763441699841,0.1469,2984.0,2983.0,2.673e-05]
[1763441701051,0.00497757,2984.1,2983.4,2.85369004]
[1763441701444,0.00497757,2984.1,2983.0,2.673e-05]
[1763441701445,0.1394,2984.0,2983.0,2.673e-05]
[1763441702052,0.00497757,2984.1,2983.0,2.673e-05]
[1763441702241,0.00497757,2984.1,2983.4,2.85369004]
[1763441702448,0.14931763,2984.8,2983.4,2.85369004]
[1763441702649,0.14931763,2984.8,2983.5,3.8505225]
[1763441702946,0.1394,2983.2,2983.0,2.673e-05]
[1763441703148,0.1394,2983.2,2981.3,3.12913899]
[1763441703451,1.1767149,2983.0,2980.8,4.29069004]
[1763441703657,0.1394,2982.6,2980.8,4.56435185]
[1763441703947,0.1394,2982.6,2980.9,3.56241068]
[1763441704152,0.1394,2982.6,2979.9,0.0704]
[1763441704153,0.00502673,2982.0,2981.5,0.00502673]
[1763441704941,0.1394,2981.7,2981.5,0.00502673]
[1763441705141,0.1394,2981.7,2980.9,0.00431239]
[1763441705446,1.1767149,2981.5,2980.9,0.00431239]
[1763441705640,0.77404838,2981.4,2980.9,0.00431239]
[1763441705845,0.77404838,2981.3,2980.9,0.00431239]
[1763441706052,1.90466607,2981.7,2979.3,0.27591147]
[1763441706053,1.95076328,2981.2,2979.3,0.27591147]
[1763441706248,0.00502673,2980.5,2979.0,2.85369004]
[1763441706648,0.00502673,2980.5,2979.1,2.85369004]
[1763441706849,0.77907511,2980.5,2979.1,2.85369004]
[1763441707044,0.00858871,2980.5,2979.1,0.0035508]
[1763441707250,1.1767149,2981.8,2979.7,2.85369004]
[1763441707549,1.1767149,2981.8,2979.8,3.73114208]
[1763441708151,0.00502673,2981.0,2980.5,0.00502673]
[1763441711449,0.1394,2980.8,2980.5,0.00502673]
[1763441711853,0.1394,2980.8,2979.1,2.85724084]
[1763441712044,0.78098802,2981.0,2979.6,2.85369004]
[1763441712354,0.00502673,2981.0,2979.7,6.34322517]
[1763441712556,0.00502673,2981.0,2979.7,3.48953513]
[1763441712754,0.00502673,2981.0,2980.1,0.00502673]
[1763441712755,0.1394,2980.8,2980.1,0.00502673]
[1763441713155,1.1767149,2980.7,2979.1,0.0035508]
[1763441713351,1.1767149,2980.5,2979.1,0.0035508]
[1763441713547,0.1394,2979.9,2979.1,0.0035508]
[1763441714148,0.1394,2979.9,2979.2,0.00502673]
[1763441714546,1.1767149,2980.4,2979.4,2.85369004]
[1763441714758,0.1394,2980.8,2979.4,2.85369004]
[1763441715953,0.1394,2980.8,2979.2,0.00502673]
[1763441717159,0.1394,2980.8,2979.4,2.85369004]
[1763441718059,0.1394,2980.8,2979.2,0.00502673]
[1763441718455,1.3161149,2980.8,2979.2,0.00502673]
[1763441718656,0.77271665,2980.7,2979.2,0.00502673]
[1763441718858,0.77271665,2980.6,2979.2,0.00502673]
[1763441719061,0.1394,2980.8,2979.2,0.00502673]
[1763441719460,1.1767149,2980.7,2979.2,0.00502673]
[1763441719665,0.1358,2979.9,2979.2,0.00502673]
[1763441720459,0.1394,2980.8,2979.2,0.00502673]
[1763441720668,0.1394,2980.8,2979.4,2.85369004]
[1763441721460,0.1394,2980.8,2979.2,0.00502673]
[1763441722470,0.00502673,2981.0,2979.3,3.59844172]
[1763441722766,0.00502673,2981.0,2979.9,2.85369004]
[1763441724269,0.00502673,2981.0,2979.2,0.00502673]
[1763441724463,0.00502673,2981.0,2980.4,2.85369004]
[1763441724665,0.00502673,2981.0,2980.0,3.59697056]
[1763441724865,0.00502673,2981.0,2979.9,2.85369004]
[1763441725062,0.14180987,2981.7,2980.5,2.85369004]
[1763441726374,0.00502673,2981.4,2980.8,0.00502673]
[1763441727368,0.00502673,2981.4,2981.1,2.85369004]
[1763441727369,2.673e-05,2981.4,2981.1,2.85369004]
[1763441727561,0.1394,2982.6,2981.1,2.85369004]
[1763441728180,0.1394,2982.6,2981.7,2.85369004]
[1763441728370,0.1358,2983.5,2980.8,0.09492673]
[1763441728574,0.00502673,2982.4,2982.3,2.85369004]
[1763441728961,0.13861084,2983.5,2982.3,2.85369004]
[1763441729878,0.13861084,2983.5,2982.1,0.00502673]
[1763441730183,0.00502673,2983.1,2982.3,2.85369004]
[1763441730573,0.00281084,2983.5,2982.9,2.85369004]
[1763441730872,0.77406219,2985.1,2982.9,0.2728606]
[1763441731075,0.77406219,2985.0,2982.9,3.12655064]
[1763441731280,0.77406219,2984.9,2982.9,3.12655064]
[1763441731473,0.00502673,2983.9,2982.9,3.12655064]
[1763441731680,0.008277,2983.9,2983.0,3.60230157]
[1763441731974,0.008277,2983.9,2982.9,0.00371531]
[1763441734479,0.008277,2983.9,2983.1,2.85369004]
[1763441734670,1.91026607,2985.3,2982.9,0.00371531]
[1763441734671,0.145,2985.3,2983.7,2.85369004]
[1763441734870,0.145,2985.3,2983.0,3.59241686]
[1763441735070,0.145,2985.3,2982.9,2.85740535]
[1763441735683,0.13988972,2984.4,2983.4,0.00502673]
[1763441736880,0.145,2984.0,2983.4,0.00502673]
[1763441738370,0.00408972,2984.4,2983.5,2.85369004]
[1763441738570,0.145,2985.3,2983.5,6.62712537]
[1763441738776,0.145,2985.3,2984.1,2.01779299]
[1763441739077,0.145,2985.3,2984.6,2.01779299]
[1763441739471,0.14891473,2985.3,2984.6,2.01779299]
[1763441739672,0.00391473,2985.3,2984.6,2.01779299]
[1763441739879,0.145,2986.2,2984.6,2.01779299]
[1763441740080,0.145,2986.2,2985.1,0.00502673]
[1763441740281,0.145,2985.6,2982.5,2.65512591]
[1763441740574,0.145,2985.6,2983.9,2.01779299]
[1763441740880,0.14806899,2985.6,2983.9,2.02127777]
[1763441741582,0.00502673,2985.0,2984.5,0.00502673]
[1763441741970,0.14806899,2985.6,2984.5,0.00502673]
[1763441742785,0.14806899,2985.6,2985.0,1.77953124]
[1763441743479,0.00306899,2985.6,2985.4,1.77953124]
[1763441744175,0.00306899,2985.6,2985.2,1.77953124]
[1763441746076,0.14806899,2985.6,2984.5,0.00502673]
[1763441746278,0.14806899,2985.6,2984.9,1.77953124]
[1763441747080,0.145,2984.8,2984.5,0.00502673]
[1763441747392,0.145,2984.8,2983.9,0.00348478]
[1763441748090,0.145,2984.8,2984.0,1.77953124]
[1763441748287,0.00502673,2984.7,2984.1,0.00502673]
[1763441749387,0.00502673,2984.7,2984.4,1.77953124]
[1763441751189,0.14806899,2985.6,2984.4,1.77953124]
[1763441751389,0.14806899,2985.6,2985.1,1.77953124]
[1763441751580,0.00306899,2985.6,2985.1,1.77953124]
[1763441751780,0.77035218,2986.6,2985.1,1.77953124]
[1763441751986,3.06,2987.2,2985.5,1.77953124]
[1763441752185,0.77049484,2987.1,2985.5,1.77953124]
[1763441752381,1.94720974,2987.1,2985.5,1.77953124]
[1763441752786,1.94720974,2987.1,2985.0,2.37232809]
[1763441752993,0.1484189,2986.2,2985.0,2.37232809]
[1763441754088,0.0034189,2986.2,2985.5,2.37232809]
[1763441755195,0.0034189,2986.2,2984.1,0.00502673]
[1763441755394,0.0034189,2986.2,2985.5,2.37232809]
[1763441756694,0.77297388,2987.1,2986.0,2.37232809]
[1763441756893,1.1767149,2988.4,2986.8,2.37232809]
[1763441757098,1.1767149,2988.9,2987.3,2.37232809]
[1763441757397,0.91879882,2988.8,2987.5,2.37232809]
[1763441757604,0.77379882,2988.7,2987.5,2.37232809]
[1763441757899,0.00328982,2988.0,2987.8,0.00502673]
[1763441760797,0.145,2988.8,2987.8,0.00502673]
[1763441760997,0.77387228,2989.7,2988.5,2.37232809]
[1763441761300,0.1399,2991.2,2989.5,2.37232809]
[1763441761594,0.77329769,2991.8,2990.7,2.37232809]
[1763441761801,0.00312139,2991.8,2990.7,2.37516807]
[1763441763198,0.00312139,2991.8,2991.2,2.37232809]
[1763441763499,0.00312139,2991.8,2991.7,2.37232809]
[1763441764197,0.00312139,2991.8,2990.7,0.00283998]
[1763441764499,0.00312139,2991.8,2991.2,2.37232809]
[1763441764995,0.1399,2994.3,2991.7,2.37232809]
[1763441765206,0.1399,2994.3,2991.6,0.0813]
[1763441765207,0.1399,2994.3,2993.8,2.37232809]
[1763441765791,0.1399,2994.3,2993.3,2.37232809]
[1763441765989,0.14392021,2994.3,2993.3,0.00273019]
[1763441766190,0.1399,2993.4,2992.8,3.47651541]
[1763441766393,0.1399,2993.4,2992.7,2.37734632]
[1763441766593,0.14392021,2994.3,2992.7,2.37734632]
[1763441766995,0.1399,2993.4,2990.7,0.27573393]
[1763441767305,0.1399,2993.4,2991.5,2.37232809]
[1763441768197,0.1399,2991.6,2990.9,2.37232809]
[1763441768506,0.1428824,2991.6,2990.7,0.00375453]
[1763441769002,0.0029824,2991.6,2991.4,2.37232809]
[1763441769200,0.0029824,2991.6,2991.2,0.00501823]
[1763441770108,0.0029824,2991.6,2991.4,2.37232809]
[1763441770300,0.0029824,2991.6,2991.2,0.00501823]
[1763441770503,0.1399,2991.0,2990.7,0.00375453]
[1763441772008,6.1399,2991.0,2990.6,0.00501823]
[1763441772202,6.1399,2991.0,2989.8,2.37232809]
[1763441772203,6.0,2990.9,2989.0,0.27596317]
[1763441772409,0.1399,2991.0,2989.0,0.27596317]
[1763441772704,0.1399,2991.0,2988.8,2.37232809]
[1763441773093,0.1399,2991.0,2989.6,0.00501823]
[1763441773308,0.1399,2989.8,2989.6,0.00501823]
[1763441773601,0.1399,2989.8,2988.8,2.37574671]
[1763441773807,0.1399,2989.8,2988.8,0.00341862]
[1763441773997,0.1399,2988.9,2988.8,0.00341862]
[1763441774198,0.14315846,2988.9,2988.8,0.00341862]
[1763441774397,0.14315846,2988.9,2988.2,2.37232809]
[1763441774596,0.1399,2989.8,2988.7,2.37232809]
[1763441774801,0.1399,2991.0,2989.7,2.37232809]
[1763441775002,0.1399,2991.0,2990.1,0.00501823]
[1763441775202,0.00501823,2990.6,2990.1,0.00501823]
[1763441775607,0.00911314,2990.6,2990.1,0.00743572]
[1763441776898,0.00911314,2990.6,2990.1,3.572e-05]
[1763441777806,0.00911314,2990.6,2990.1,2.37236381]
[1763441778001,0.00911314,2990.6,2990.1,2.37573761]
[1763441778605,0.00911314,2990.6,2990.1,0.00340952]
[1763441778804,0.00911314,2990.6,2990.1,2.37573761]
[1763441779804,0.1399,2991.6,2990.1,2.37573761]
[1763441780010,0.1399,2991.6,2990.6,2.37232809]
[1763441780413,1.1767149,2993.3,2991.1,2.37232809]
[1763441780721,0.00501823,2992.1,2991.2,3.7547938]
[1763441780909,0.1441103,2992.5,2992.3,2.37232809]
[1763441780910,0.0042103,2992.5,2992.3,2.37232809]
[1763441781107,0.1399,2993.4,2992.3,0.00315176]
[1763441781709,0.1399,2993.4,2992.3,2.37547985]
[1763441782017,0.00501823,2993.1,2992.6,1.823e-05]
[1763441782217,0.00745416,2993.1,2992.3,0.00315176]
[1763441782902,0.00745416,2993.1,2991.2,2.37232809]
[1763441783109,0.14,2992.0,2990.2,2.37232809]
[1763441783309,0.14,2992.0,2991.2,2.37232809]
[1763441783706,0.00243593,2993.1,2991.2,2.37232809]
[1763441783913,0.00243593,2993.1,2991.7,2.37232809]
[1763441784106,0.00501823,2992.7,2991.7,2.37232809]
[1763441784310,0.00501823,2992.7,2992.1,2.37570189]
[1763441784615,0.00501823,2992.7,2992.1,0.0033738]
[1763441785909,0.00501823,2992.7,2991.2,0.0028073]
[1763441786619,0.00501823,2992.7,2991.4,2.37232809]
[1763441787122,0.00501823,2992.7,2991.2,0.0028073]
[1763441787521,0.77512902,2992.7,2991.2,0.0028073]
[1763441787723,0.1422,2992.5,2991.2,0.0028073]
[1763441787922,0.1422,2991.6,2991.2,0.0028073]
[1763441788226,1.3189149,2991.6,2989.9,2.37232809]
[1763441788413,0.00501823,2991.0,2989.9,2.37232809]
[1763441789109,0.00832649,2991.0,2989.9,2.37548643]
[1763441789626,0.15052649,2991.0,2989.9,2.37548643]
[1763441790910,0.15052649,2991.0,2989.9,0.00315834]
[1763441791116,0.1422,2990.0,2989.9,0.00315834]
[1763441791317,0.77011079,2990.6,2989.9,2.37548643]
[1763441791523,0.77011079,2990.5,2989.9,2.37548643]
[1763441791723,1.1767149,2990.9,2989.9,2.37548643]
[1763441792121,1.1767149,2990.7,2989.9,0.00315834]
[1763441792421,0.77420799,2990.6,2990.0,2.37232809]
[1763441792622,0.15052649,2991.0,2990.0,2.37232809]
[1763441793125,0.00832649,2991.0,2990.0,2.37232809]
[1763441793619,0.00832649,2991.0,2989.9,2.37548643]
[1763441793826,0.77413785,2991.4,2990.9,2.37232809]
[1763441794025,0.1422,2992.5,2990.9,2.37232809]
[1763441794221,0.1422,2992.5,2991.7,2.37232809]
[1763441795023,0.00501823,2992.4,2991.8,0.00501823]
[1763441798022,1.18173313,2992.4,2990.3,2.37232809]
[1763441798224,1.1767149,2992.1,2990.8,2.37232809]
[1763441798531,0.77461538,2992.1,2990.8,2.37232809]
[1763441798736,0.77461538,2992.0,2991.3,2.37232809]
[1763441799030,0.00501823,2992.4,2991.3,2.37232809]
[1763441800330,0.78063688,2992.4,2991.3,2.37232809]
[1763441800530,0.77561865,2992.3,2991.3,2.37232809]
[1763441800731,0.77561865,2992.2,2991.3,2.37232809]
[1763441801033,0.77561865,2992.1,2991.3,2.37232809]
[1763441801223,0.00501823,2992.4,2991.3,2.37232809]
[1763441801533,0.00501823,2992.4,2989.9,0.00315834]
[1763441801534,1.18173313,2992.4,2989.9,0.00315834]
[1763441801730,1.1767149,2992.1,2990.6,2.37232809]
[1763441801929,1.1767149,2992.0,2990.6,2.37232809]
[1763441802127,1.42367328,2992.5,2991.9,2.37232809]
[1763441802324,2.13506895,2993.6,2992.4,2.37232809]
[1763441802527,7.69440681,2994.7,2991.7,1.817]
[1763441802528,2.92679245,2995.8,2993.5,2.37232809]
[1763441802721,6.06097447,2996.1,2993.5,2.37232809]
[1763441802722,2.92679245,2996.0,2993.5,2.37232809]
[1763441803030,0.54151,2995.0,2993.5,2.37232809]
[1763441803242,0.54151,2995.0,2992.4,1.78983047]
[1763441803243,0.1422,2993.4,2993.2,0.89334128]
[1763441803426,0.1422,2993.4,2993.1,0.89334128]
[1763441803625,0.14631228,2993.4,2993.1,0.89694874]
[1763441803824,0.14631228,2993.4,2993.1,0.00360746]
[1763441804025,0.00501823,2993.6,2993.1,0.00360746]
[1763441804225,0.00501823,2993.6,2993.3,0.89334128]
[1763441804434,0.54153,2994.9,2993.5,2.37232809]
[1763441804632,0.1422,2996.1,2993.5,2.37232809]
[1763441804833,0.1422,2996.1,2993.6,2.83042916]
[1763441805029,0.14482569,2994.3,2993.6,2.83042916]
[1763441805426,0.00501823,2994.2,2993.6,2.83042916]
[1763441805624,0.14482569,2994.3,2993.6,2.83042916]
[1763441805625,0.00262569,2994.3,2993.9,0.89334128]
[1763441805825,0.68367,2995.2,2994.0,0.89334128]
[1763441806025,0.54149,2995.1,2993.8,3.72377044]
[1763441806441,0.54151,2995.0,2993.8,2.83042916]
[1763441806627,0.1422,2995.2,2993.8,2.83042916]
[1763441806829,0.00500935,2994.7,2993.8,2.83042916]
[1763441807021,0.14576749,2995.2,2994.4,2.83042916]
[1763441807226,0.1422,2996.1,2995.1,2.83042916]
[1763441807622,0.1422,2996.1,2995.2,0.89334128]
[1763441807826,0.1422,2996.1,2994.8,0.89334128]
[1763441808034,0.00500935,2995.7,2995.2,0.00500935]
[1763441808334,0.68366,2995.2,2993.9,2.83042916]
[1763441808528,0.68366,2995.2,2993.9,2.83295126]
[1763441808729,0.1422,2995.2,2993.9,2.83295126]
[1763441808931,0.68367,2995.2,2993.9,2.83295126]
[1763441809131,0.1422,2995.2,2993.9,2.83295126]
[1763441809433,0.1422,2994.0,2993.9,0.0025221]
[1763441809635,0.54185,2993.1,2992.4,2.83042916]
[1763441809828,0.1422,2993.0,2991.9,0.89334128]
[1763441810029,0.14720935,2993.0,2992.5,0.00500935]
[1763441810326,0.14720935,2993.0,2991.2,2.83042916]
[1763441810531,0.14720935,2993.0,2991.2,2.83403549]
[1763441810731,0.15051302,2993.0,2991.2,2.83403549]
[1763441810932,0.15051302,2993.0,2991.2,3.72737677]
[1763441811135,0.54191,2992.8,2991.2,3.72737677]
[1763441811440,0.15051302,2993.0,2992.4,2.83042916]
[1763441811839,0.15051302,2993.0,2991.8,3.72377044]
[1763441812136,0.15051302,2993.0,2991.8,2.83042916]
[1763441812340,0.1422,2994.0,2992.4,2.83042916]
[1763441812540,2.92679245,2996.2,2991.9,5.61538845]
[1763441812541,5.42874032,2997.0,2993.9,2.83042916]
[1763441812737,0.54122,2996.6,2995.9,2.83042916]
[1763441812938,0.1422,2996.0,2995.0,0.89334128]
[1763441813132,0.1422,2996.0,2994.9,2.83042916]
[1763441813436,0.1422,2996.0,2994.3,3.72377044]
[1763441813628,0.00500935,2995.5,2995.0,0.00500935]
[1763441813829,0.1422,2995.3,2995.0,0.00500935]
[1763441814042,0.00500935,2995.5,2995.0,0.00500935]
[1763441814234,0.00500935,2995.5,2995.0,0.89835063]
[1763441814936,0.00500935,2995.5,2995.0,0.00500935]
[1763441815134,0.1422,2995.3,2995.0,0.00500935]
[1763441815338,0.1422,2995.3,2995.1,0.85650039]
[1763441815638,0.1422,2995.3,2995.0,0.00500935]
[1763441815850,0.1422,2995.3,2995.1,0.85651564]
[1763441816027,0.1422,2995.3,2995.0,0.00500935]
[1763441816228,0.54147,2995.2,2995.0,0.00500935]
[1763441816437,6.1422,2995.3,2994.5,0.00311644]
[1763441816738,0.54154,2994.8,2994.5,0.00311644]
[1763441816941,0.1422,2995.3,2994.5,0.00311644]
[1763441817238,0.54156,2994.7,2994.5,0.00311644]
[1763441817440,0.1883,2994.2,2993.5,0.89334128]
[1763441817735,0.1883,2994.2,2993.6,0.8610898]
[1763441817938,0.1883,2994.2,2993.7,0.85608045]
[1763441818140,0.1883,2994.2,2993.8,0.85608045]
[1763441818335,0.1883,2994.2,2993.8,0.0042202]
[1763441818539,5.91877447,2999.2,2994.2,3.35]
[1763441818736,0.1883,3000.8,2999.5,2.83042916]
[1763441818935,14.0064,3000.7,3000.6,2.83042916]
[1763441819139,0.1883,3000.8,3000.6,3.68673336]
[1763441819346,12.97253019,3000.7,3000.6,2.83042916]
[1763441819542,0.00253076,3000.7,3000.6,8.14606845]
[1763441819947,0.00253076,3000.7,3000.6,4.44429747]
[1763441820146,0.00499975,3001.0,3000.6,8.55346777]
[1763441820350,0.00499975,3001.0,3000.7,1.61012811]
[1763441820641,0.00499975,3001.0,3000.8,1.61012811]
[1763441820845,0.00499975,3001.0,3000.9,1.61012811]
[1763441821041,0.00888894,3001.0,3000.9,1.61012811]
[1763441821245,0.1883,3000.4,3000.2,4.1091703]
[1763441821749,0.1883,3000.4,2999.9,2.83042916]
[1763441822142,0.1883,3000.4,2999.7,2.93797155]
[1763441822339,0.1883,3000.4,3000.1,2.33886308]
[1763441822647,0.1883,3000.4,2999.7,0.00843439]
[1763441822648,6.0,3000.3,2999.7,0.00843439]
[1763441823049,6.0,3000.2,2999.7,0.00843439]
[1763441823245,0.1883,3000.4,2999.1,2.33886308]
[1763441823246,6.0,3000.3,2999.1,2.33886308]
[1763441823451,0.1883,3000.4,2999.9,1e-08]
[1763441823639,0.1883,3000.4,3000.3,2.83042916]
[1763441823847,0.00388919,3001.0,3000.3,2.83042916]
[1763441824038,0.00388919,3001.0,2999.9,2.93797155]
[1763441824244,0.1883,3000.0,2999.9,0.00243922]
[1763441824453,0.1883,3000.0,2998.8,2.83042916]
[1763441824953,0.1883,3000.0,2998.6,2.83042916]
[1763441825144,0.1883,2998.8,2998.6,2.83042916]
[1763441825453,0.19077884,2998.8,2998.6,2.83405827]
[1763441825750,0.19077884,2998.8,2998.6,0.00362911]
[1763441826154,0.1883,3000.0,2998.6,0.00362911]
[1763441826355,0.1883,3000.0,2999.9,2.83042916]
[1763441826550,0.1883,3000.0,2998.6,0.00362911]
[1763441826749,0.1883,3000.0,2999.1,2.83042916]
[1763441826955,0.1883,3000.0,2999.7,2.83042916]
[1763441827556,0.1883,3002.4,2999.7,2.83042916]
[1763441827756,0.1883,3002.4,2999.6,0.00499975]
[1763441827757,0.1883,3000.0,2999.6,0.00499975]
[1763441828660,0.19230891,3000.0,2999.6,0.00499975]
[1763441829053,0.19230891,3000.0,2998.8,2.83042916]
[1763441829461,0.19230891,3000.0,2998.6,0.00362911]
[1763441829656,0.19230891,3000.0,2998.6,2.83405827]
[1763441830159,0.19230891,3000.0,2999.2,2.83042916]
[1763441830556,0.19230891,3000.0,2999.0,0.00499975]
[1763441831459,0.73289891,3000.0,2999.0,0.00499975]
[1763441831658,0.19230891,3000.0,2999.0,0.00499975]
[1763441833062,0.73290891,3000.0,2999.0,0.00499975]
[1763441833257,0.19230891,3000.0,2999.1,1.46025395]
[1763441833458,0.19230891,3000.0,2999.2,1.46025395]
[1763441833757,0.19230891,3000.0,2999.3,1.46025395]
[1763441833961,0.54063,2999.8,2999.4,3.279e-05]
[1763441834262,0.19230891,3000.0,2999.0,0.00499975]
[1763441834566,0.73290891,3000.0,2999.1,0.40244273]
[1763441834863,0.19230891,3000.0,2999.2,0.40244273]
[1763441835057,0.19230891,3000.0,2999.3,0.40244273]
[1763441835257,0.19230891,3000.0,2999.4,0.40244273]
[1763441835457,0.19230891,3000.0,2999.5,0.40244273]
[1763441835762,0.19230891,3000.0,2999.0,0.00499975]
[1763441836265,0.54066,2999.7,2999.0,0.00499975]
[1763441836455,0.19230891,3000.0,2999.0,0.00499975]
[1763441836655,0.54061,2999.9,2999.0,0.00499975]
[1763441836852,0.19230891,3000.0,2999.0,0.00499975]
[1763441837056,0.54061,2999.9,2999.0,0.00499975]
[1763441837256,0.19230891,3000.0,2999.0,0.00499975]
[1763441837466,0.19230891,3000.0,2999.3,2.83042916]
[1763441837664,0.19230891,3000.0,2999.3,2.33526723]
[1763441837966,0.19230891,3000.0,2999.0,0.00499975]
[1763441837967,0.54063,2999.8,2999.0,0.00499975]
[1763441838167,0.54065,2999.7,2999.0,0.00499975]
[1763441838563,0.19230891,3000.0,2999.0,0.00499975]
[1763441839066,0.54061,2999.9,2999.0,0.00499975]
[1763441839261,0.54063,2999.8,2999.0,0.00499975]
[1763441839463,0.19230891,3000.0,2999.0,0.00499975]
[1763441839464,0.73289891,3000.0,2999.0,0.00499975]
[1763441839661,0.73289891,3000.0,2999.0,2.34026698]
[1763441839860,0.54066,2999.7,2999.0,2.34026698]
[1763441840160,0.19230891,3000.0,2999.2,2.33526723]
[1763441840362,0.00400891,3000.0,2999.5,2.33526723]
[1763441840557,0.1883,3001.2,2999.4,2.83042916]
[1763441840766,0.54027,3001.8,3001.0,2.34369089]
[1763441840965,12.017,3002.9,3001.1,2.34369089]
[1763441841169,0.54031,3001.6,3001.3,2.34369089]
[1763441841364,12.017,3002.9,3001.1,2.34369089]
[1763441841566,0.54025,3001.9,3001.4,0.00499975]
[1763441841767,0.54031,3001.6,3001.4,0.00499975]
[1763441842264,6.0,3001.5,3000.0,4.1091703]
[1763441842465,0.19153469,3002.4,3000.0,4.1091703]
[1763441842466,2.83042916,3002.2,3000.0,0.6702]
[1763441842766,0.54045,3000.8,3000.0,5.2673412]
[1763441842964,0.54047,3000.7,3000.1,1.76671204]
[1763441843164,0.54047,3000.7,3000.0,0.6702]
[1763441843165,0.00323469,3002.4,3000.3,1.76671204]
[1763441843361,0.54045,3000.8,3000.3,1.76945336]
[1763441843564,0.00499975,3001.7,3000.4,2.83042916]
[1763441843759,0.5404,3001.1,3000.4,4.5971412]
[1763441844170,0.5404,3001.1,3000.5,1.76671204]
[1763441844872,0.00499975,3001.7,3000.5,1.76671204]
[1763441844873,0.54038,3001.2,3000.5,1.76671204]
[1763441845169,0.00499975,3001.7,3001.0,3.50062916]
[1763441845366,0.00499975,3001.7,3001.3,1.76671204]
[1763441845569,0.00323469,3002.4,3002.0,0.6702]
[1763441845777,0.54339469,3002.4,3002.0,0.6702]
[1763441845976,0.00323469,3002.4,3002.0,0.6702]
[1763441846267,0.00323469,3002.4,3001.5,2.83042916]
[1763441846268,0.00323469,3002.4,3002.1,0.87935827]
[1763441846468,0.00323469,3002.4,3002.2,0.87935827]
[1763441846771,0.00323469,3002.4,3002.3,0.87935827]
[1763441847367,0.00323469,3002.4,3002.3,2.64607031]
[1763441847564,0.014,3004.4,3001.0,0.6702]
[1763441847565,0.54039,3001.2,3001.0,0.6702]
[1763441847772,0.54032,3001.5,3001.1,0.40438091]
[1763441847966,0.54035,3001.4,3001.2,0.40438091]
[1763441848163,0.54035,3001.4,3001.3,0.40438091]
[1763441848375,6.857,3002.4,3001.3,0.40438091]
[1763441848581,0.54033,3001.5,3001.4,0.40438091]
[1763441848870,0.00499975,3002.2,3000.3,0.00274132]
[1763441849070,0.54051,3000.5,3000.4,0.40370015]
[1763441849377,0.54051,3000.5,3000.3,0.00274132]
[1763441850176,0.54051,3000.5,3000.1,0.00499975]
[1763441850177,0.54075,2999.2,2999.0,0.6702]
[1763441850369,0.54074,2999.2,2999.0,0.6702]
[1763441851168,0.00346675,2999.2,2999.0,0.67317962]
[1763441851670,0.54058,3000.1,3000.0,0.7314]
[1763441852083,0.54064,2999.8,2999.0,0.67317962]
[1763441852374,2.83042916,3001.4,2999.0,0.67317962]
[1763441852375,2.83042916,3001.4,2999.2,2.38147925]
[1763441852580,0.00499975,3000.6,3000.0,0.00499975]
[1763441852771,0.54053,3000.4,3000.0,0.73639975]
[1763441853278,0.00392322,3001.4,3001.0,0.7314]
[1763441853470,2.83042916,3003.8,3001.2,2.83042916]
[1763441853666,2.209,3003.6,3001.6,1.19007214]
[1763441853877,0.54022,3002.1,3002.0,1.19007214]
[1763441854070,2.83042916,3003.9,3002.0,1.18992039]
[1763441854272,0.54011,3002.7,3002.5,0.00499975]
[1763441854472,0.00410581,3002.7,3002.5,0.0077984]
[1763441854677,0.54012,3002.6,3002.5,1.19771879]
[1763441854977,0.54012,3002.6,3002.5,0.0077984]
[1763441855176,0.54422581,3002.7,3002.5,0.0077984]
[1763441855377,0.00410581,3002.7,3002.5,0.0077984]
[1763441856168,0.53966,3005.2,3003.0,0.7314]
[1763441856377,2.83042916,3006.4,3004.3,1.18630612]
[1763441856573,2.83042916,3006.4,3004.1,0.7314]
[1763441856776,0.96770737,3005.6,3004.1,0.7314]
[1763441856978,0.53981,3004.4,3004.1,0.7314]
[1763441857178,0.00239132,3004.4,3004.1,0.7314]
[1763441857391,0.00499135,3004.6,3004.3,1.18630612]
[1763441857591,0.09064158,3006.1,3005.2,0.7314]
[1763441858080,0.09064158,3006.1,3005.3,1.18133339]
[1763441858280,0.09442267,3006.1,3005.3,0.00292185]
[1763441858683,0.09442267,3006.1,3005.9,2.83042916]
[1763441858880,0.0346,3008.7,3005.5,1.18133339]
[1763441858881,0.0346,3008.7,3006.3,0.7314]
[1763441859087,0.00499135,3007.8,3007.2,0.00499135]
[1763441859379,0.53944,3006.5,3006.3,0.7314]
[1763441859785,0.54298632,3006.5,3006.3,0.7314]
[1763441859978,0.00354632,3006.5,3006.3,0.7314]
[1763441860176,0.54298632,3006.5,3006.3,0.7314]
[1763441860879,0.53947,3006.2,3006.1,0.00499135]
[1763441861084,0.53962,3005.4,3005.3,0.00292185]
[1763441861390,0.96770737,3006.2,3003.7,4.00692039]
[1763441861577,3.29954632,3006.5,3003.7,2.83042916]
[1763441861778,3.29954632,3006.5,3004.2,0.84957032]
[1763441861973,3.29954632,3006.5,3003.7,2.83042916]
[1763441861974,0.00499135,3005.7,3005.0,0.00499135]
[1763441862281,0.53983,3004.3,3003.3,2.83042916]
[1763441862478,0.00499135,3005.7,3004.1,0.7350588]
[1763441862679,0.5397,3005.0,3004.1,0.7350588]
[1763441862983,0.00499135,3005.7,3004.1,0.7350588]
[1763441863178,0.53981,3004.4,3004.2,0.00498854]
[1763441863583,0.54,3003.3,3003.1,0.84964286]
[1763441863786,0.54003,3003.1,3003.0,0.02451319]
[1763441864187,0.00315335,3004.4,3003.0,0.02451319]
[1763441864384,0.00315335,3004.4,3001.9,0.7314]
[1763441864584,0.00499135,3003.5,3001.9,0.73503859]
[1763441864978,0.54023,3002.1,3001.9,0.73503859]
[1763441865180,0.5435236,3002.1,3001.9,0.73503859]
[1763441865683,0.54036,3001.3,3000.1,1.17649123]
[1763441865878,0.00499135,3001.4,3000.3,2.83042916]
[1763441866074,0.00499135,3001.4,3000.1,1.17649123]
[1763441866288,0.00499135,3001.4,3000.9,2.83042916]
[1763441866485,0.00499135,3001.4,3000.4,4.00692039]
[1763441866688,0.0032936,3002.1,3001.9,0.7314]
[1763441866883,2.34581967,3004.1,3001.9,0.73431828]
[1763441867186,0.96770737,3005.3,3003.0,0.7314]
[1763441867489,2.34581967,3004.7,3003.0,0.7314]
[1763441867787,0.00499135,3004.2,3003.5,0.00499135]
[1763441867990,0.5399,3003.9,3003.5,0.00499135]
[1763441868289,0.53988,3004.0,3003.5,0.00499135]
[1763441868475,0.53986,3004.1,3003.5,0.00499135]
[1763441868687,0.00499135,3004.2,3004.1,0.7314]
[1763441868983,0.53994,3003.6,3003.5,0.00499135]
[1763441869184,0.00499135,3004.2,3003.5,0.00499135]